[Event "Early-Titled-Tuesday-Blitz-September-12-2023"]
[Site "Chess.com"]
[Date "2023.09.12"]
[Round "5"]
[White "bascheyaro"]
[Black "Rud_Makarian"]
[Result "0-1"]
[WhiteElo "2819"]
[BlackElo "2969"]
[TimeControl "180+1"]
[EndTime "8:56:19 PDT"]
[Termination "Rud_Makarian won by resignation"]

1. d4 {[%clk 0:02:59.7]} 1... d5 {[%clk 0:03:00.5]} 2. c4 {[%clk 0:02:58.6]}
2... e6 {[%clk 0:03:01.1]} 3. Nc3 {[%clk 0:02:58.8]} 3... Nf6 {[%clk 0:03:01.8]}
4. Bg5 {[%clk 0:02:58.8]} 4... c6 {[%clk 0:02:59.5]} 5. e3 {[%clk 0:02:59.1]}
5... Nbd7 {[%clk 0:02:58.5]} 6. Nf3 {[%clk 0:02:59]} 6... h6 {[%clk 0:02:58.9]}
7. Bh4 {[%clk 0:02:59.1]} 7... Be7 {[%clk 0:02:59.3]} 8. Qc2 {[%clk 0:02:59.4]}
8... O-O {[%clk 0:02:59.1]} 9. Rd1 {[%clk 0:02:59.3]} 9... a5 {[%clk 0:02:59]}
10. a3 {[%clk 0:02:59.6]} 10... Re8 {[%clk 0:02:54.8]} 11. h3 {[%clk 0:02:59.5]}
11... dxc4 {[%clk 0:02:53.1]} 12. Bxc4 {[%clk 0:02:58.5]} 12... Nd5 {[%clk
0:02:52.6]} 13. Bxe7 {[%clk 0:02:57.7]} 13... Qxe7 {[%clk 0:02:53.5]} 14. O-O
{[%clk 0:02:57.2]} 14... Nxc3 {[%clk 0:02:39.3]} 15. Qxc3 {[%clk 0:02:56.6]}
15... b5 {[%clk 0:02:38.7]} 16. Be2 {[%clk 0:02:43.1]} 16... Bb7 {[%clk
0:02:37.9]} 17. Rc1 {[%clk 0:02:38.7]} 17... b4 {[%clk 0:02:25.9]} 18. axb4
{[%clk 0:02:38]} 18... axb4 {[%clk 0:02:26.8]} 19. Qb3 {[%clk 0:02:28.8]} 19...
Reb8 {[%clk 0:02:18.6]} 20. Ra1 {[%clk 0:02:05.6]} 20... c5 {[%clk 0:01:58.8]}
21. dxc5 {[%clk 0:02:04.3]} 21... Rxa1 {[%clk 0:01:58.5]} 22. Rxa1 {[%clk
0:02:03.7]} 22... Bd5 {[%clk 0:01:57.8]} 23. Qc2 {[%clk 0:01:53]} 23... Bxf3
{[%clk 0:01:29.8]} 24. Bxf3 {[%clk 0:01:52.7]} 24... Qxc5 {[%clk 0:01:30.3]} 25.
Qd1 {[%clk 0:01:33]} 25... Ne5 {[%clk 0:01:25.9]} 26. Be2 {[%clk 0:01:31.5]}
26... Rc8 {[%clk 0:01:20.5]} 27. b3 {[%clk 0:01:28]} 27... g6 {[%clk 0:01:05.9]}
28. Bf1 {[%clk 0:01:12.4]} 28... Kg7 {[%clk 0:00:57.7]} 29. Ra4 {[%clk
0:01:03.9]} 29... Nc6 {[%clk 0:00:27.9]} 30. Qa1+ {[%clk 0:00:59.1]} 30... Qc3
{[%clk 0:00:28]} 31. Bb5 {[%clk 0:00:27.1]} 31... Ne7 {[%clk 0:00:20.9]} 32. Bc4
{[%clk 0:00:22.6]} 32... Nf5 {[%clk 0:00:12.2]} 33. Qd1 {[%clk 0:00:20.4]} 33...
Rc7 {[%clk 0:00:07.7]} 34. Ra8 {[%clk 0:00:15.1]} 34... Qf6 {[%clk 0:00:06.3]}
35. Rb8 {[%clk 0:00:14.8]} 35... Ra7 {[%clk 0:00:05.5]} 36. Qd8 {[%clk
0:00:04.7]} 36... Ra1+ {[%clk 0:00:05.9]} 37. Kh2 {[%clk 0:00:05.3]} 37... Qxd8
{[%clk 0:00:06.2]} 38. Rxd8 {[%clk 0:00:05.3]} 38... Ra2 {[%clk 0:00:07.1]} 39.
Rb8 {[%clk 0:00:05]} 39... Rxf2 {[%clk 0:00:06.7]} 40. Rxb4 {[%clk 0:00:04.7]}
40... Nxe3 {[%clk 0:00:06.6]} 41. Kg3 {[%clk 0:00:05.3]} 41... Rb2 {[%clk
0:00:05.4]} 42. Kf3 {[%clk 0:00:05]} 42... Nxc4 {[%clk 0:00:05.6]} 43. Rxc4
{[%clk 0:00:05]} 43... Rxb3+ {[%clk 0:00:06.3]} 44. Kf2 {[%clk 0:00:05.5]} 44...
Rb5 {[%clk 0:00:06.9]} 45. Rc3 {[%clk 0:00:05.8]} 45... h5 {[%clk 0:00:07.6]}
46. Kf3 {[%clk 0:00:06.4]} 46... Rf5+ {[%clk 0:00:07.8]} 47. Kg3 {[%clk
0:00:06.8]} 47... g5 {[%clk 0:00:08.3]} 48. Re3 {[%clk 0:00:07.3]} 48... h4+
{[%clk 0:00:08.2]} 49. Kg4 {[%clk 0:00:07.4]} 49... Kg6 {[%clk 0:00:08.3]} 50.
g3 {[%clk 0:00:07.9]} 50... Rf1 {[%clk 0:00:07]} 51. gxh4 {[%clk 0:00:02.7]}
51... f5+ {[%clk 0:00:06.3]} 52. Kg3 {[%clk 0:00:02.8]} 52... f4+ {[%clk
0:00:06.6]} 53. Kg2 {[%clk 0:00:03.4]} 53... fxe3 {[%clk 0:00:06.2]} 54. Kxf1
{[%clk 0:00:04]} 54... gxh4 {[%clk 0:00:06.6]} 55. Ke2 {[%clk 0:00:04.9]} 55...
Kf5 {[%clk 0:00:06.2]} 56. Kxe3 {[%clk 0:00:05.6]} 56... e5 {[%clk 0:00:06.7]}
57. Kf3 {[%clk 0:00:06.2]} 57... e4+ {[%clk 0:00:06.6]} 58. Ke3 {[%clk
0:00:06.2]} 58... Ke5 {[%clk 0:00:07.4]} 59. Ke2 {[%clk 0:00:06.7]} 59... Kf4
{[%clk 0:00:06]} 60. Kf2 {[%clk 0:00:07.2]} 60... e3+ {[%clk 0:00:04.6]} 61. Ke2
{[%clk 0:00:07.1]} 61... Ke4 {[%clk 0:00:05.2]} 62. Ke1 {[%clk 0:00:07.5]} 62...
Kf3 {[%clk 0:00:05.5]} 63. Kf1 {[%clk 0:00:08.1]} 63... Kg3 {[%clk 0:00:05.6]}
64. Ke2 {[%clk 0:00:08.8]} 64... Kxh3 {[%clk 0:00:06.3]} 65. Kf3 {[%clk
0:00:09.3]} 65... e2 {[%clk 0:00:06.2]} 66. Kf2 {[%clk 0:00:09.7]} 66... e1=Q+
{[%clk 0:00:05.9]} 67. Kxe1 {[%clk 0:00:10.4]} 67... Kg2 {[%clk 0:00:06.8]} 0-1

[Event "Early-Titled-Tuesday-Blitz-September-12-2023"]
[Site "Chess.com"]
[Date "2023.09.12"]
[Round "5"]
[White "kacprekt"]
[Black "Lennis93"]
[Result "1-0"]
[WhiteElo "2468"]
[BlackElo "2735"]
[TimeControl "180+1"]
[EndTime "8:56:22 PDT"]
[Termination "kacprekt won by checkmate"]

1. e4 {[%clk 0:03:00.9]} 1... c5 {[%clk 0:03:00]} 2. c3 {[%clk 0:03:00.3]} 2...
Nc6 {[%clk 0:03:00.9]} 3. d4 {[%clk 0:02:59.9]} 3... e6 {[%clk 0:03:01.4]} 4. d5
{[%clk 0:02:57.2]} 4... Ne5 {[%clk 0:03:00.4]} 5. f4 {[%clk 0:02:55.7]} 5... Ng6
{[%clk 0:03:00.5]} 6. c4 {[%clk 0:02:52.8]} 6... d6 {[%clk 0:03:00.1]} 7. Nc3
{[%clk 0:02:51.7]} 7... Be7 {[%clk 0:02:58.8]} 8. Nf3 {[%clk 0:02:51.2]} 8...
Nf6 {[%clk 0:02:58.1]} 9. e5 {[%clk 0:02:49.2]} 9... dxe5 {[%clk 0:02:15.3]} 10.
fxe5 {[%clk 0:02:43.4]} 10... Nd7 {[%clk 0:02:04.6]} 11. d6 {[%clk 0:02:34.5]}
11... Bh4+ {[%clk 0:01:53]} 12. g3 {[%clk 0:02:33.5]} 12... Ndxe5 {[%clk
0:01:53.5]} 13. gxh4 {[%clk 0:02:16.9]} 13... Nxf3+ {[%clk 0:01:43.1]} 14. Qxf3
{[%clk 0:02:17.8]} 14... Qxd6 {[%clk 0:01:43.1]} 15. h5 {[%clk 0:01:46.3]} 15...
Ne7 {[%clk 0:01:43]} 16. Bf4 {[%clk 0:01:42.6]} 16... e5 {[%clk 0:01:32.7]} 17.
Nb5 {[%clk 0:01:38]} 17... Qb8 {[%clk 0:01:32.4]} 18. Be3 {[%clk 0:01:15.5]}
18... a6 {[%clk 0:01:32.4]} 19. Nc3 {[%clk 0:01:12.3]} 19... b6 {[%clk
0:01:24.8]} 20. Bg2 {[%clk 0:01:10.2]} 20... Ra7 {[%clk 0:01:24.9]} 21. Nd5
{[%clk 0:01:03.9]} 21... Nxd5 {[%clk 0:01:22.6]} 22. cxd5 {[%clk 0:01:01.3]}
22... Qd6 {[%clk 0:01:11.1]} 23. O-O-O {[%clk 0:00:56.6]} 23... f5 {[%clk
0:01:10.4]} 24. Rhe1 {[%clk 0:00:53.7]} 24... O-O {[%clk 0:01:10.2]} 25. Bf2
{[%clk 0:00:46.7]} 25... a5 {[%clk 0:01:09.1]} 26. Qc3 {[%clk 0:00:25.6]} 26...
Re7 {[%clk 0:01:08.5]} 27. Bh4 {[%clk 0:00:21.7]} 27... Ree8 {[%clk 0:01:07.7]}
28. Re2 {[%clk 0:00:18.7]} 28... f4 {[%clk 0:01:08.1]} 29. Rde1 {[%clk
0:00:17.3]} 29... Bg4 {[%clk 0:01:08.1]} 30. Bf3 {[%clk 0:00:17.4]} 30... Bxf3
{[%clk 0:00:57.9]} 31. Qxf3 {[%clk 0:00:18.3]} 31... Rf5 {[%clk 0:00:58.4]} 32.
Rg1 {[%clk 0:00:15.6]} 32... Rxh5 {[%clk 0:00:58.1]} 33. Qxh5 {[%clk 0:00:15]}
33... g6 {[%clk 0:00:58.2]} 34. Qh6 {[%clk 0:00:13.4]} 34... Qxd5 {[%clk
0:00:43.1]} 35. Rxg6+ {[%clk 0:00:13]} 35... hxg6 {[%clk 0:00:43.4]} 36. Qxg6+
{[%clk 0:00:13.9]} 36... Kf8 {[%clk 0:00:44]} 37. Qf6+ {[%clk 0:00:14.5]} 37...
Kg8 {[%clk 0:00:44.3]} 38. Qg6+ {[%clk 0:00:13.4]} 38... Kf8 {[%clk 0:00:44.7]}
39. Bf6 {[%clk 0:00:09]} 39... Re6 {[%clk 0:00:25.9]} 40. Qg7+ {[%clk
0:00:08.7]} 40... Ke8 {[%clk 0:00:26.6]} 41. Qg8+ {[%clk 0:00:08.2]} 41... Kd7
{[%clk 0:00:27.3]} 42. Rd2 {[%clk 0:00:08.8]} 42... Qxd2+ {[%clk 0:00:26.3]} 43.
Kxd2 {[%clk 0:00:09.2]} 43... Rxf6 {[%clk 0:00:27.2]} 44. Qg7+ {[%clk
0:00:08.1]} 44... Ke6 {[%clk 0:00:27.9]} 45. Qb7 {[%clk 0:00:07.2]} 45... f3
{[%clk 0:00:28.8]} 46. Qxb6+ {[%clk 0:00:07.2]} 46... Kf7 {[%clk 0:00:29.3]} 47.
Qxc5 {[%clk 0:00:07.3]} 47... f2 {[%clk 0:00:29.3]} 48. Qc4+ {[%clk 0:00:07.8]}
48... Kg6 {[%clk 0:00:28.2]} 49. Qf1 {[%clk 0:00:08.7]} 49... Rf4 {[%clk
0:00:25.6]} 50. Ke3 {[%clk 0:00:09.2]} 50... Kf5 {[%clk 0:00:25.8]} 51. Qxf2
{[%clk 0:00:09.5]} 51... Kg4 {[%clk 0:00:24.6]} 52. Qxf4+ {[%clk 0:00:09.6]}
52... exf4+ {[%clk 0:00:25.5]} 53. Kf2 {[%clk 0:00:10.1]} 53... f3 {[%clk
0:00:22.6]} 54. h3+ {[%clk 0:00:10.3]} 54... Kf4 {[%clk 0:00:20.4]} 55. h4
{[%clk 0:00:10.8]} 55... Kg4 {[%clk 0:00:20.4]} 56. h5 {[%clk 0:00:11.3]} 56...
Kxh5 {[%clk 0:00:20.5]} 57. Kxf3 {[%clk 0:00:12.2]} 57... Kg5 {[%clk 0:00:21.4]}
58. Ke4 {[%clk 0:00:12.8]} 58... Kf6 {[%clk 0:00:21.8]} 59. Kd4 {[%clk
0:00:13.4]} 59... Ke6 {[%clk 0:00:22.7]} 60. Kc5 {[%clk 0:00:14]} 60... a4
{[%clk 0:00:23.6]} 61. Kb4 {[%clk 0:00:14.3]} 61... a3 {[%clk 0:00:24.5]} 62.
Kxa3 {[%clk 0:00:14.8]} 62... Kd5 {[%clk 0:00:25.4]} 63. Kb4 {[%clk 0:00:15.7]}
63... Kc6 {[%clk 0:00:25.6]} 64. a4 {[%clk 0:00:16.6]} 64... Kb6 {[%clk
0:00:26.5]} 65. b3 {[%clk 0:00:17.5]} 65... Ka6 {[%clk 0:00:27.3]} 66. Kc4
{[%clk 0:00:18.4]} 66... Kb6 {[%clk 0:00:28.2]} 67. b4 {[%clk 0:00:18.6]} 67...
Kc6 {[%clk 0:00:29.1]} 68. a5 {[%clk 0:00:18.9]} 68... Kb7 {[%clk 0:00:29.4]}
69. b5 {[%clk 0:00:19.3]} 69... Ka7 {[%clk 0:00:30.3]} 70. Kc5 {[%clk
0:00:19.8]} 70... Kb7 {[%clk 0:00:31.2]} 71. b6 {[%clk 0:00:18.3]} 71... Ka6
{[%clk 0:00:31]} 72. Kc6 {[%clk 0:00:18.6]} 72... Kxa5 {[%clk 0:00:31.6]} 73. b7
{[%clk 0:00:19.1]} 73... Kb4 {[%clk 0:00:32.5]} 74. b8=Q+ {[%clk 0:00:19.3]}
74... Kc4 {[%clk 0:00:33.4]} 75. Qe5 {[%clk 0:00:19.5]} 75... Kd3 {[%clk
0:00:33.7]} 76. Qf4 {[%clk 0:00:19.6]} 76... Kc2 {[%clk 0:00:34.6]} 77. Qe3
{[%clk 0:00:19.9]} 77... Kb2 {[%clk 0:00:34.9]} 78. Qd3 {[%clk 0:00:20.1]} 78...
Ka2 {[%clk 0:00:35.8]} 79. Qb5 {[%clk 0:00:19.7]} 79... Ka3 {[%clk 0:00:36.2]}
80. Kc5 {[%clk 0:00:20.6]} 80... Ka2 {[%clk 0:00:37.1]} 81. Kc4 {[%clk
0:00:21.2]} 81... Ka1 {[%clk 0:00:38]} 82. Kc3 {[%clk 0:00:21.6]} 82... Ka2
{[%clk 0:00:19]} 83. Qb2# {[%clk 0:00:22.5]} 1-0

[Event "Early-Titled-Tuesday-Blitz-September-12-2023"]
[Site "Chess.com"]
[Date "2023.09.12"]
[Round "5"]
[White "marik_spb"]
[Black "Fh2411"]
[Result "1/2-1/2"]
[WhiteElo "2436"]
[BlackElo "2587"]
[TimeControl "180+1"]
[EndTime "8:56:41 PDT"]
[Termination "Game drawn - insufficient material"]

1. e4 {[%clk 0:02:59]} 1... c6 {[%clk 0:02:49.9]} 2. c4 {[%clk 0:02:58.5]} 2...
e5 {[%clk 0:02:43.5]} 3. Nc3 {[%clk 0:02:56.1]} 3... d6 {[%clk 0:02:43.1]} 4.
Nf3 {[%clk 0:02:54]} 4... Nd7 {[%clk 0:02:41.8]} 5. Be2 {[%clk 0:02:39]} 5...
Ngf6 {[%clk 0:02:30.1]} 6. O-O {[%clk 0:02:26.7]} 6... Be7 {[%clk 0:02:22.6]} 7.
h3 {[%clk 0:02:20.7]} 7... O-O {[%clk 0:02:18.3]} 8. Qc2 {[%clk 0:02:19.5]} 8...
Re8 {[%clk 0:02:12.2]} 9. d4 {[%clk 0:02:10.8]} 9... Bf8 {[%clk 0:02:10.6]} 10.
Rd1 {[%clk 0:02:08.3]} 10... a6 {[%clk 0:02:05.4]} 11. b4 {[%clk 0:01:50.9]}
11... b5 {[%clk 0:01:30.5]} 12. dxe5 {[%clk 0:01:49.1]} 12... dxe5 {[%clk
0:01:26.1]} 13. a3 {[%clk 0:01:45.3]} 13... Qc7 {[%clk 0:01:22.7]} 14. c5 {[%clk
0:01:42.9]} 14... g6 {[%clk 0:00:59.1]} 15. Bb2 {[%clk 0:01:22.5]} 15... Nh5
{[%clk 0:00:57.1]} 16. Bf1 {[%clk 0:01:18.9]} 16... Nf4 {[%clk 0:00:46.6]} 17.
Ne2 {[%clk 0:01:01.8]} 17... Nxe2+ {[%clk 0:00:37.2]} 18. Bxe2 {[%clk
0:01:02.7]} 18... Bg7 {[%clk 0:00:37]} 19. Rd2 {[%clk 0:00:58.5]} 19... Nf8
{[%clk 0:00:36.9]} 20. Rd6 {[%clk 0:00:57.6]} 20... a5 {[%clk 0:00:22.2]} 21.
Qb3 {[%clk 0:00:47.9]} 21... Be6 {[%clk 0:00:20.8]} 22. Qd3 {[%clk 0:00:43.3]}
22... Bc4 {[%clk 0:00:19.3]} 23. Qe3 {[%clk 0:00:40.3]} 23... Bxe2 {[%clk
0:00:18]} 24. Qxe2 {[%clk 0:00:41.2]} 24... axb4 {[%clk 0:00:17.9]} 25. axb4
{[%clk 0:00:42.1]} 25... Rxa1+ {[%clk 0:00:18]} 26. Bxa1 {[%clk 0:00:42.2]}
26... Re6 {[%clk 0:00:15.7]} 27. Qd2 {[%clk 0:00:33.9]} 27... Re8 {[%clk
0:00:15.8]} 28. Bc3 {[%clk 0:00:29.9]} 28... f6 {[%clk 0:00:14.7]} 29. Qd3
{[%clk 0:00:26.3]} 29... Kh8 {[%clk 0:00:06.8]} 30. g3 {[%clk 0:00:26.1]} 30...
Kg8 {[%clk 0:00:06.7]} 31. Kg2 {[%clk 0:00:26.1]} 31... Kf7 {[%clk 0:00:07.3]}
32. Qd1 {[%clk 0:00:25.4]} 32... Ke7 {[%clk 0:00:07.9]} 33. Qb3 {[%clk
0:00:25.1]} 33... Rd8 {[%clk 0:00:06.3]} 34. Qg8 {[%clk 0:00:21.6]} 34... Bh6
{[%clk 0:00:05.9]} 35. Nxe5 {[%clk 0:00:14.5]} 35... Rxd6 {[%clk 0:00:05.4]} 36.
cxd6+ {[%clk 0:00:13]} 36... Qxd6 {[%clk 0:00:06.3]} 37. Nf3 {[%clk 0:00:12.9]}
37... Qe6 {[%clk 0:00:06.2]} 38. Qxe6+ {[%clk 0:00:10.9]} 38... Nxe6 {[%clk
0:00:06.9]} 39. g4 {[%clk 0:00:08.8]} 39... Bf8 {[%clk 0:00:06.3]} 40. Kg3
{[%clk 0:00:06.6]} 40... Kf7 {[%clk 0:00:06.5]} 41. Nd2 {[%clk 0:00:06.9]} 41...
Bd6+ {[%clk 0:00:07]} 42. Kf3 {[%clk 0:00:05.5]} 42... Ng5+ {[%clk 0:00:06.6]}
43. Kg2 {[%clk 0:00:05.9]} 43... Ne6 {[%clk 0:00:06.9]} 44. h4 {[%clk
0:00:05.4]} 44... Nf4+ {[%clk 0:00:07.1]} 45. Kf3 {[%clk 0:00:05.7]} 45... g5
{[%clk 0:00:07]} 46. h5 {[%clk 0:00:05.7]} 46... Ke6 {[%clk 0:00:06.3]} 47. Ke3
{[%clk 0:00:06]} 47... Be5 {[%clk 0:00:06.7]} 48. Bxe5 {[%clk 0:00:05.1]} 48...
fxe5 {[%clk 0:00:07.6]} 49. Nb3 {[%clk 0:00:04.8]} 49... Kd6 {[%clk 0:00:08.1]}
50. Nc5 {[%clk 0:00:04.8]} 50... Ne6 {[%clk 0:00:08.7]} 51. Nd3 {[%clk
0:00:02.2]} 51... c5 {[%clk 0:00:08.2]} 52. bxc5+ {[%clk 0:00:03.1]} 52... Nxc5
{[%clk 0:00:09.1]} 53. Nb4 {[%clk 0:00:03.5]} 53... Na4 {[%clk 0:00:08.8]} 54.
f3 {[%clk 0:00:03.6]} 54... Nb2 {[%clk 0:00:08.6]} 55. Kd2 {[%clk 0:00:03]}
55... Kc5 {[%clk 0:00:08.3]} 56. Kc3 {[%clk 0:00:03.3]} 56... Na4+ {[%clk
0:00:08]} 57. Kb3 {[%clk 0:00:03.2]} 57... Kd4 {[%clk 0:00:08.7]} 58. Nc6+
{[%clk 0:00:02.9]} 58... Ke3 {[%clk 0:00:08]} 59. Nxe5 {[%clk 0:00:03.8]} 59...
Kf4 {[%clk 0:00:08.5]} 60. Nf7 {[%clk 0:00:03.9]} 60... Nc5+ {[%clk 0:00:07.2]}
61. Kb4 {[%clk 0:00:04.5]} 61... Ne6 {[%clk 0:00:07.2]} 62. Kxb5 {[%clk
0:00:04.6]} 62... Nd4+ {[%clk 0:00:07.9]} 63. Kc4 {[%clk 0:00:04.3]} 63... Nxf3
{[%clk 0:00:08.6]} 64. Kd5 {[%clk 0:00:03.4]} 64... Kxg4 {[%clk 0:00:09]} 65. e5
{[%clk 0:00:03.3]} 65... Nxe5 {[%clk 0:00:08.8]} 66. Kxe5 {[%clk 0:00:03.5]}
66... Kxh5 {[%clk 0:00:09.7]} 67. Kf5 {[%clk 0:00:03.9]} 67... Kh4 {[%clk
0:00:10.4]} 68. Nxg5 {[%clk 0:00:04.1]} 68... h5 {[%clk 0:00:11.3]} 69. Ne4
{[%clk 0:00:03.9]} 69... Kh3 {[%clk 0:00:11.5]} 70. Ng5+ {[%clk 0:00:04.2]}
70... Kg3 {[%clk 0:00:11.6]} 71. Kg6 {[%clk 0:00:04]} 71... h4 {[%clk
0:00:12.5]} 72. Kh5 {[%clk 0:00:04.5]} 72... h3 {[%clk 0:00:12.8]} 73. Nxh3
{[%clk 0:00:05.1]} 1/2-1/2

[Event "Early-Titled-Tuesday-Blitz-September-12-2023"]
[Site "Chess.com"]
[Date "2023.09.12"]
[Round "5"]
[White "PapiPapita"]
[Black "crazy_m_attack"]
[Result "1-0"]
[WhiteElo "2576"]
[BlackElo "2385"]
[TimeControl "180+1"]
[EndTime "8:56:43 PDT"]
[Termination "PapiPapita won on time"]

1. f3 {[%clk 0:03:00.9]} 1... Nf6 {[%clk 0:02:59.6]} 2. Nh3 {[%clk 0:03:00.2]}
2... d5 {[%clk 0:02:58.9]} 3. g3 {[%clk 0:02:55]} 3... e5 {[%clk 0:02:58.2]} 4.
Bg2 {[%clk 0:02:54.8]} 4... c5 {[%clk 0:02:56.3]} 5. O-O {[%clk 0:02:53.3]} 5...
Nc6 {[%clk 0:02:56.5]} 6. Nf2 {[%clk 0:02:53.2]} 6... Bd6 {[%clk 0:02:55]} 7. e3
{[%clk 0:02:50.7]} 7... O-O {[%clk 0:02:54.5]} 8. d3 {[%clk 0:02:49.7]} 8... Ne8
{[%clk 0:02:43.4]} 9. c4 {[%clk 0:02:44.6]} 9... d4 {[%clk 0:02:40.3]} 10. e4
{[%clk 0:02:38.6]} 10... f5 {[%clk 0:02:38.1]} 11. exf5 {[%clk 0:02:33.1]} 11...
Bxf5 {[%clk 0:02:39]} 12. Nd2 {[%clk 0:02:32.1]} 12... Nf6 {[%clk 0:02:34.3]}
13. Qe2 {[%clk 0:02:30.3]} 13... Nb4 {[%clk 0:02:32.5]} 14. Nde4 {[%clk
0:02:26.5]} 14... Bxe4 {[%clk 0:02:26]} 15. Nxe4 {[%clk 0:02:23.2]} 15... Nxe4
{[%clk 0:02:17.7]} 16. Qxe4 {[%clk 0:02:24.1]} 16... Qc7 {[%clk 0:01:56.4]} 17.
Rf2 {[%clk 0:02:12.7]} 17... Kh8 {[%clk 0:01:51.1]} 18. a3 {[%clk 0:02:11.9]}
18... Nc6 {[%clk 0:01:51]} 19. Bd2 {[%clk 0:02:10.7]} 19... a5 {[%clk
0:01:46.3]} 20. Re1 {[%clk 0:02:10.4]} 20... Rae8 {[%clk 0:01:41]} 21. Rfe2
{[%clk 0:01:58.9]} 21... Rb8 {[%clk 0:01:35.3]} 22. Bh3 {[%clk 0:01:55.2]} 22...
b5 {[%clk 0:01:14]} 23. cxb5 {[%clk 0:01:53.8]} 23... Rxb5 {[%clk 0:01:14.9]}
24. Bc1 {[%clk 0:01:54.7]} 24... Nd8 {[%clk 0:00:58.8]} 25. Rf1 {[%clk
0:01:43.6]} 25... c4 {[%clk 0:00:53.8]} 26. dxc4 {[%clk 0:01:42.3]} 26... Qxc4
{[%clk 0:00:54.7]} 27. Rc2 {[%clk 0:01:33.7]} 27... Qd5 {[%clk 0:00:29.3]} 28.
Bf5 {[%clk 0:01:26.8]} 28... Qxe4 {[%clk 0:00:17.4]} 29. Bxe4 {[%clk 0:01:27.7]}
29... Rb6 {[%clk 0:00:11.7]} 30. Bd2 {[%clk 0:01:23.1]} 30... a4 {[%clk
0:00:08.1]} 31. Bd5 {[%clk 0:00:56.4]} 31... Rb5 {[%clk 0:00:05]} 32. Bc4 {[%clk
0:00:47.5]} 32... Rb8 {[%clk 0:00:03.3]} 33. Rfc1 {[%clk 0:00:42.3]} 33... Nb7
{[%clk 0:00:02.9]} 34. Bd5 {[%clk 0:00:40.9]} 34... Na5 {[%clk 0:00:01.8]} 35.
Bxa5 {[%clk 0:00:39.8]} 35... Rb5 {[%clk 0:00:02.1]} 36. Bb4 {[%clk 0:00:21.4]}
36... Rxd5 {[%clk 0:00:01.9]} 37. Rc8 {[%clk 0:00:17]} 37... Bxb4 {[%clk
0:00:02]} 38. axb4 {[%clk 0:00:17.9]} 38... Rdd8 {[%clk 0:00:02.6]} 39. Rxd8
{[%clk 0:00:16.3]} 39... Rxd8 {[%clk 0:00:03.5]} 40. Kf2 {[%clk 0:00:15.7]}
40... g6 {[%clk 0:00:03.4]} 41. Rc5 {[%clk 0:00:15.9]} 41... Rb8 {[%clk
0:00:03.1]} 42. b5 {[%clk 0:00:15.4]} 42... Kg7 {[%clk 0:00:03.6]} 43. Rxe5
{[%clk 0:00:15.1]} 43... Kf6 {[%clk 0:00:03.4]} 44. Rd5 {[%clk 0:00:15.7]} 44...
Ke6 {[%clk 0:00:02.8]} 45. Rxd4 {[%clk 0:00:16.1]} 45... Rxb5 {[%clk 0:00:02.8]}
46. Rd2 {[%clk 0:00:14.8]} 46... Rb3 {[%clk 0:00:03.1]} 47. Kg2 {[%clk
0:00:15.1]} 47... Kf5 {[%clk 0:00:03.4]} 48. h4 {[%clk 0:00:16]} 48... h6 {[%clk
0:00:03.2]} 49. g4+ {[%clk 0:00:16.3]} 49... Kf4 {[%clk 0:00:03.3]} 50. Rd4+
{[%clk 0:00:16.6]} 50... Ke3 {[%clk 0:00:03.8]} 51. Re4+ {[%clk 0:00:17.3]}
51... Kd3 {[%clk 0:00:03.4]} 52. Rxa4 {[%clk 0:00:17.5]} 52... Rxb2+ {[%clk
0:00:03.6]} 53. Kg3 {[%clk 0:00:18.4]} 53... Rb6 {[%clk 0:00:02.5]} 54. Re4
{[%clk 0:00:18.1]} 54... Rf6 {[%clk 0:00:01.9]} 55. g5 {[%clk 0:00:18]} 55...
hxg5 {[%clk 0:00:02]} 56. hxg5 {[%clk 0:00:18.9]} 56... Rd6 {[%clk 0:00:02.1]}
57. Kg4 {[%clk 0:00:19.8]} 57... Kd2 {[%clk 0:00:02.3]} 58. Rf4 {[%clk
0:00:19.7]} 58... Kd3 {[%clk 0:00:02.5]} 59. Rf6 {[%clk 0:00:20.6]} 59... Rd4+
{[%clk 0:00:02.7]} 60. Kg3 {[%clk 0:00:18.9]} 60... Ke3 {[%clk 0:00:02.5]} 61.
Re6+ {[%clk 0:00:18.7]} 61... Kd2 {[%clk 0:00:01.6]} 62. Rxg6 {[%clk 0:00:19.6]}
62... Rd5 {[%clk 0:00:01.7]} 63. f4 {[%clk 0:00:19.9]} 63... Ke3 {[%clk
0:00:01.9]} 64. Re6+ {[%clk 0:00:19.9]} 64... Kd4 {[%clk 0:00:02.6]} 65. Kg4
{[%clk 0:00:20.1]} 65... Rd8 {[%clk 0:00:02.2]} 66. g6 {[%clk 0:00:20.6]} 66...
Kd5 {[%clk 0:00:02.7]} 67. Re5+ {[%clk 0:00:20.5]} 67... Kd6 {[%clk 0:00:03.2]}
68. Kg5 {[%clk 0:00:21.4]} 68... Rf8 {[%clk 0:00:02.8]} 69. g7 {[%clk
0:00:21.1]} 69... Rg8 {[%clk 0:00:01.8]} 70. Kg6 {[%clk 0:00:21.4]} 70... Rb8
{[%clk 0:00:02]} 71. Re1 {[%clk 0:00:19.7]} 71... Kd7 {[%clk 0:00:02.2]} 72. f5
{[%clk 0:00:20.3]} 72... Rb7 {[%clk 0:00:02.1]} 73. f6 {[%clk 0:00:20.6]} 73...
Rb8 {[%clk 0:00:02.2]} 74. Re7+ {[%clk 0:00:19.1]} 74... Kd6 {[%clk 0:00:02.2]}
75. Rf7 {[%clk 0:00:19.4]} 75... Ke6 {[%clk 0:00:02.1]} 76. Rf8 {[%clk
0:00:20.1]} 76... Rxf8 {[%clk 0:00:01.7]} 77. gxf8=Q {[%clk 0:00:21]} 77... Kd5
{[%clk 0:00:02.2]} 78. Qe7 {[%clk 0:00:21.8]} 1-0